bitfinex/quotes_SOLUSD_20250414
["timestamp","ask_amount","ask_price","bid_price","bid_amount"]
[1744591227252,6.1162,130.8,130.76,19.35437547]
[1744591227452,25.47057547,130.8,130.75,19.35437547]
[1744591227646,6.1162,130.8,130.75,19.35437547]
[1744591228941,25.47057547,130.8,130.75,19.35437547]
[1744591230237,6.1162,130.8,130.76,19.35437547]
[1744591230445,6.1162,130.8,130.74,6.119]
[1744591230754,6.1162,130.8,130.76,19.35437547]
[1744591233056,25.47057547,130.8,130.75,19.35437547]
[1744591233348,6.1162,130.8,130.76,19.35437547]
[1744591233542,19.35437547,130.79,130.74,19.35437547]
[1744591233747,0.28432314,130.79,130.73,28.65737547]
[1744591234066,25.47057547,130.8,130.75,19.35437547]
[1744591234241,6.1162,130.8,130.76,19.35437547]
[1744591234750,18.64964886,130.82,130.77,19.35437547]
[1744591234934,27.24507547,130.83,130.78,19.35437547]
[1744591235139,7.8907,130.83,130.78,19.35437547]
[1744591235332,27.24507547,130.83,130.78,19.35437547]
[1744591236057,7.8907,130.83,130.81,19.35437547]
[1744591236241,7.8907,130.83,130.8,19.35437547]
[1744591236633,27.24507547,130.83,130.77,19.35437547]
[1744591236839,27.24507547,130.83,130.76,6.118]
[1744591237039,19.35437547,130.82,130.75,6.26056157]
[1744591237264,19.35437547,130.81,130.76,19.35437547]
[1744591238464,26.0,130.8,130.76,19.35437547]
[1744591238836,26.0,130.8,130.74,6.26096157]
[1744591239037,26.0,130.8,130.76,19.35437547]
[1744591239747,19.35437547,130.78,130.73,9.303]
[1744591239942,19.35437547,130.78,130.73,28.65737547]
[1744591240141,18.64964886,130.79,130.73,9.303]
[1744591240357,26.0,130.8,130.73,34.77677547]
[1744591240557,19.35437547,130.79,130.74,19.35437547]
[1744591241059,18.64964886,130.81,130.74,19.35437547]
[1744591241263,45.35437547,130.79,130.74,19.35437547]
[1744591241573,19.35437547,130.78,130.73,28.65737547]
[1744591241754,45.35437547,130.79,130.74,19.35437547]
[1744591242362,26.0,130.79,130.73,28.65737547]
[1744591242542,19.35437547,130.78,130.73,28.65737547]
[1744591242968,26.0,130.79,130.73,9.303]
[1744591242969,19.35437547,130.77,130.73,9.303]
[1744591243143,1.5656,130.79,130.74,12.00602751]
[1744591243344,1.5656,130.79,130.73,27.42822751]
[1744591243552,1.5656,130.82,130.78,12.00602751]
[1744591243963,1.5656,130.82,130.8,12.00602751]
[1744591244168,1.5656,130.82,130.78,6.1171]
[1744591244169,6.2298,130.83,130.81,12.00602751]
[1744591244471,1.5656,130.86,130.82,12.00602751]
[1744591245169,1.5656,130.86,130.82,19.18402573]
[1744591245564,6.2119,130.87,130.84,19.18402573]
[1744591246063,25.39592573,130.87,130.82,19.18402573]
[1744591246266,19.18402573,130.86,130.81,19.18402573]
[1744591246565,19.18402573,130.85,130.8,19.18402573]
[1744591246758,19.18402573,130.84,130.77,6.1176]
[1744591246966,19.18402573,130.84,130.78,19.18402573]
[1744591247442,19.18402573,130.85,130.8,19.18402573]
[1744591247745,1.6232,130.82,130.78,19.18402573]
[1744591247945,1.6232,130.82,130.79,19.18402573]
[1744591248350,26.0,130.84,130.8,19.18402573]
[1744591248550,1.6232,130.86,130.82,19.18402573]
[1744591248959,7.7367,130.86,130.82,19.18402573]
[1744591250059,26.92072573,130.86,130.81,19.18402573]
[1744591250271,7.7367,130.86,130.82,19.18402573]
[1744591250858,26.92072573,130.86,130.81,19.18402573]
[1744591253469,26.92072573,130.86,130.8,6.1159]
[1744591253649,26.92072573,130.86,130.78,19.18402573]
[1744591253650,19.18402573,130.83,130.78,19.18402573]
[1744591254072,19.18402573,130.84,130.79,19.18402573]
[1744591255158,19.18402573,130.83,130.76,9.24]
[1744591255349,19.18402573,130.84,130.79,19.18402573]
[1744591256152,19.18402573,130.83,130.78,19.18402573]
[1744591257274,19.18402573,130.82,130.77,19.18402573]
[1744591257463,19.18402573,130.82,130.76,34.54202573]
[1744591257970,19.18402573,130.82,130.77,19.18402573]
[1744591258150,6.1138,130.85,130.8,19.18402573]
[1744591258356,6.2119,130.87,130.84,19.18402573]
[1744591258564,6.4724,130.91,130.86,19.18402573]
[1744591258773,6.4724,130.91,130.88,19.18402573]
[1744591259588,12.5835,130.91,130.87,19.18402573]
[1744591259759,6.4724,130.91,130.87,19.18402573]
[1744591259951,6.4724,130.91,130.88,19.18402573]
[1744591260150,0.03,130.92,130.86,6.1132]
[1744591260151,0.03,130.92,130.9,19.18402573]
[1744591260369,0.03,130.92,130.87,0.14216157]
[1744591260370,0.03,130.92,130.91,19.18402573]
[1744591260567,0.03,130.92,130.87,0.14216157]
[1744591260777,0.03,130.92,130.89,19.18402573]
[1744591260965,0.03,130.92,130.9,19.18402573]
[1744591261162,0.03,130.92,130.91,19.3261873]
[1744591261364,0.03,130.92,130.91,22.07195607]
[1744591261565,6.4724,130.99,130.91,22.35627921]
[1744591261763,0.03,131.0,130.96,19.18402573]
[1744591261966,0.03,131.0,130.98,19.18402573]
[1744591262178,0.03,131.0,130.99,19.18402573]
[1744591262681,0.03,131.0,130.98,19.18402573]
[1744591262865,0.03,131.0,130.95,9.24]
[1744591262866,0.03,131.0,130.96,19.18402573]
[1744591263065,0.03,131.0,130.96,25.29272573]
[1744591263269,0.03,131.0,130.99,19.18402573]
[1744591264456,1.5484,131.08,131.0,0.14216157]
[1744591264678,33.73894722,131.12,131.07,19.18402573]
[1744591264882,14.55492149,131.12,131.06,19.18402573]
[1744591265098,19.18402573,131.09,131.03,19.18402573]
[1744591265296,19.18402573,131.1,131.05,19.18402573]
[1744591265591,25.28612573,131.11,131.05,19.18402573]
[1744591265961,19.18402573,131.09,131.03,19.18402573]
[1744591266167,19.18402573,131.11,131.06,19.18402573]
[1744591266374,27.94760813,131.12,131.07,19.18402573]
[1744591266569,18.64964886,131.11,131.07,19.18402573]
[1744591266773,27.94760813,131.12,131.07,19.18402573]
[1744591266987,27.94760813,131.12,131.02,6.24806157]
[1744591266988,2.6622824,131.12,131.08,19.18402573]
[1744591267169,2.6622824,131.12,131.1,19.18402573]
[1744591267371,2.6622824,131.12,131.11,19.18402573]
[1744591268091,2.6622824,131.12,131.11,19.3261873]
[1744591268670,0.03,131.17,131.12,0.42648471]
[1744591268863,11.92263909,131.25,131.16,19.18402573]
[1744591269069,0.03,131.25,131.22,19.18402573]
[1744591269365,25.73582573,131.29,131.23,19.18402573]
[1744591269562,25.73582573,131.29,131.2,9.22]
[1744591269563,7.6404,131.32,131.2,28.40402573]
[1744591269791,19.18402573,131.28,131.2,9.22]
[1744591269981,19.18402573,131.26,131.2,9.22]
[1744591270174,0.14216157,131.31,131.22,19.18402573]
[1744591270478,7.6404,131.32,131.24,19.18402573]
[1744591270686,19.18402573,131.31,131.26,19.18402573]
[1744591271188,19.18402573,131.31,131.21,0.14216157]
[1744591271389,19.18402573,131.31,131.26,19.18402573]
[1744591271566,19.18402573,131.33,131.28,19.18402573]
[1744591272287,18.79181043,131.35,131.26,28.40402573]
[1744591272477,19.18402573,131.33,131.28,19.18402573]
[1744591272677,25.27412573,131.36,131.3,19.18402573]
[1744591272872,23.39470813,131.38,131.33,19.18402573]
[1744591273067,27.93550813,131.38,131.32,19.18402573]
[1744591273375,19.18402573,131.35,131.3,19.18402573]
[1744591273673,19.18402573,131.33,131.28,19.18402573]
[1744591273872,19.18402573,131.31,131.26,9.22]
[1744591274074,19.18402573,131.3,131.26,9.22]
[1744591274370,19.18402573,131.29,131.24,19.18402573]
[1744591274570,18.64964886,131.31,131.18,262.02]
[1744591274571,19.18402573,131.26,131.21,9.22]
[1744591274772,18.64964886,131.28,131.18,262.02]
[1744591274773,19.18402573,131.24,131.18,262.02]
[1744591275096,19.18402573,131.24,131.19,19.18402573]
[1744591275297,6.0961,131.23,131.19,28.18183461]
[1744591275498,28.18183461,131.22,131.17,28.18183461]
[1744591275809,26.0,131.25,131.16,9.22]
[1744591275971,28.18183461,131.22,131.16,37.40183461]
[1744591276173,18.933972,131.24,131.16,9.22]
[1744591276382,18.933972,131.24,131.17,28.18183461]
[1744591276575,28.18183461,131.23,131.17,28.18183461]
[1744591276784,28.18183461,131.21,131.16,37.40183461]
[1744591276994,28.18183461,131.2,131.16,9.22]
[1744591277290,28.18183461,131.18,131.13,28.18183461]
[1744591277478,28.18183461,131.16,131.11,37.38183461]
[1744591277676,28.18183461,131.16,131.08,9.2]
[1744591277883,28.18183461,131.16,131.1,28.18183461]
[1744591278081,28.18183461,131.16,131.11,28.18183461]
[1744591278275,28.18183461,131.14,131.09,28.18183461]
[1744591278476,28.18183461,131.14,131.08,9.2]
[1744591278477,28.18183461,131.14,131.08,37.38183461]
[1744591278878,18.933972,131.16,131.08,37.38183461]
[1744591279105,28.18183461,131.14,131.09,28.18183461]
[1744591279416,28.18183461,131.13,131.08,9.2]
[1744591280014,28.18183461,131.09,131.03,9.2]
[1744591280299,28.18183461,131.04,130.94,261.62]
[1744591280599,0.28432314,131.06,130.97,28.18183461]
[1744591280600,28.18183461,131.02,130.97,28.18183461]
[1744591280799,0.28432314,131.06,130.99,28.18183461]
[1744591280979,28.18183461,131.05,130.99,28.18183461]
[1744591281179,28.18183461,131.06,131.01,28.18183461]
[1744591281382,6.1045,131.05,131.01,28.18183461]
[1744591281586,6.1045,131.05,131.0,28.18183461]
[1744591281801,6.1045,131.05,130.94,281.553972]
[1744591281802,28.18183461,131.04,130.99,28.18183461]
[1744591281987,28.18183461,131.03,130.97,28.18183461]
[1744591282381,28.18183461,131.02,130.97,28.18183461]
[1744591282578,28.18183461,131.03,130.97,28.18183461]
[1744591282782,28.18183461,131.03,130.98,28.18183461]
[1744591283299,28.18183461,131.02,130.96,28.18183461]
[1744591283498,34.28733461,131.03,130.97,28.18183461]
[1744591283677,34.28733461,131.03,130.98,28.18183461]
[1744591283882,34.28733461,131.03,130.97,28.18183461]
[1744591284077,34.28733461,131.03,130.98,28.18183461]
[1744591284278,28.18183461,131.01,130.94,267.7296]
[1744591284500,28.18183461,130.99,130.94,261.62]
[1744591285100,28.18183461,130.99,130.94,289.80183461]
[1744591286016,28.18183461,130.98,130.93,37.38183461]
[1744591286308,28.18183461,130.96,130.92,23.01418791]
[1744591286608,28.18183461,130.94,130.92,23.01418791]
[1744591286812,28.18183461,130.95,130.92,23.01418791]
[1744591287010,28.18183461,130.94,130.92,23.01418791]
[1744591287210,28.18183461,130.93,130.92,23.01418791]
[1744591287396,47.11580661,130.93,130.92,23.01418791]
[1744591287709,53.36806818,130.93,130.92,23.01418791]
[1744591288094,53.36806818,130.93,130.9,46.02837582]
[1744591288095,0.28432314,130.91,130.9,46.02837582]
[1744591288296,47.11580661,130.91,130.86,0.063]
[1744591288508,46.83148347,130.87,130.86,0.063]
[1744591288810,47.11580661,130.87,130.86,0.063]
[1744591289418,47.25796818,130.87,130.86,0.063]
[1744591289597,52.94438347,130.87,130.86,0.063]
[1744591289989,53.22870661,130.87,130.86,0.063]
[1744591290192,52.94438347,130.87,130.86,0.063]
[1744591290618,24.76254886,130.87,130.86,0.063]
[1744591290821,53.22870661,130.87,130.86,0.063]
[1744591291027,52.94438347,130.87,130.86,0.063]
[1744591292194,6.112,130.89,130.86,0.063]
[1744591292415,28.18183461,130.88,130.86,0.063]
[1744591293119,28.18183461,130.87,130.86,0.063]
[1744591293417,46.83148347,130.87,130.86,0.063]
[1744591293796,52.94438347,130.87,130.86,0.063]
[1744591295215,28.18183461,130.87,130.86,0.063]
[1744591295694,46.83148347,130.87,130.86,0.063]
[1744591296218,24.76254886,130.87,130.86,0.063]
[1744591296519,52.94438347,130.87,130.86,0.063]
[1744591297211,53.37086818,130.87,130.86,0.063]
[1744591297418,53.37086818,130.87,130.86,0.0001]
[1744591298313,53.37086818,130.87,130.8,92.11975165]
[1744591298314,44.64964886,130.83,130.8,92.11975165]
[1744591298494,46.83148347,130.81,130.8,92.11975165]
[1744591299291,47.11580661,130.81,130.8,92.11975165]
[1744591300011,47.11580661,130.81,130.8,61.23235165]
[1744591300012,47.25796818,130.81,130.8,61.23235165]
[1744591300215,81.55550279,130.81,130.8,5.165e-05]
[1744591300395,52.94718347,130.81,130.8,5.165e-05]
[1744591300591,24.76534886,130.81,130.8,5.165e-05]
[1744591300811,52.94718347,130.81,130.8,5.165e-05]
[1744591301514,53.23150661,130.81,130.8,5.165e-05]
[1744591301819,53.37366818,130.81,130.8,5.165e-05]
[1744591302012,81.55550279,130.81,130.8,5.165e-05]
[1744591302914,73.25796818,130.79,130.78,0.063]
[1744591303292,73.25796818,130.79,130.78,0.0001]
[1744591303519,79.47226818,130.79,130.78,0.0001]
[1744591304419,85.44670661,130.79,130.78,0.0001]
[1744591304823,52.94808347,130.79,130.78,0.0001]
[1744591305226,52.94808347,130.79,130.7,21.4857]
[1744591305413,46.83148347,130.77,130.72,28.18183461]
[1744591305715,28.18183461,130.73,130.7,0.063]
[1744591306604,34.30133461,130.73,130.7,0.063]
[1744591307609,6.40232314,130.76,130.7,0.063]
[1744591307808,28.18183461,130.74,130.7,0.063]
[1744591308399,28.18183461,130.72,130.7,0.063]
[1744591308599,28.18183461,130.71,130.7,0.063]
[1744591309099,18.64964886,130.74,130.7,0.063]
[1744591309300,28.18183461,130.72,130.7,0.063]
[1744591310109,18.64964886,130.71,130.7,0.063]
[1744591310309,46.83148347,130.71,130.7,0.063]
[1744591310715,47.25796818,130.71,130.7,0.063]
[1744591311119,53.37836818,130.71,130.7,0.063]
[1744591311314,19.07613357,130.7,130.69,0.063]
[1744591311496,48.25796818,130.7,130.68,0.0001]
[1744591311694,51.52533357,130.66,130.65,0.063]
[1744591311905,44.933972,130.63,130.62,0.063]
[1744591312114,73.11580661,130.63,130.62,0.063]
[1744591312314,72.83148347,130.63,130.62,0.063]
[1744591312618,54.18183461,130.66,130.62,0.063]
[1744591313001,26.0,130.66,130.62,0.063]
[1744591313206,1.6462,130.72,130.64,28.18183461]
[1744591313403,28.18183461,130.71,130.66,28.18183461]
[1744591313603,28.18183461,130.72,130.66,28.18183461]
[1744591313803,117.53103461,130.74,130.69,28.18183461]
[1744591314015,117.53103461,130.74,130.68,28.18183461]
[1744591314195,18.64964886,130.73,130.69,28.18183461]
[1744591314400,18.64964886,130.73,130.65,0.14216157]
[1744591314615,18.64964886,130.72,130.68,28.18183461]
[1744591315296,0.14216157,130.77,130.68,28.18183461]
[1744591315297,18.64964886,130.75,130.71,28.18183461]
[1744591315624,28.18183461,130.77,130.72,28.18183461]
[1744591315916,28.18183461,130.76,130.71,28.18183461]
[1744591316119,28.18183461,130.77,130.69,0.42648471]
[1744591316335,46.83148347,130.78,130.73,28.18183461]
[1744591316621,28.18183461,130.8,130.74,28.18183461]
[1744591316821,28.18183461,130.81,130.75,28.18183461]
[1744591317113,28.18183461,130.8,130.75,28.18183461]
[1744591317421,46.83148347,130.79,130.74,28.18183461]
[1744591318011,26.03,130.79,130.74,34.30073461]
[1744591318324,18.64964886,130.78,130.75,28.18183461]
[1744591318705,18.64964886,130.78,130.73,6.1193]
[1744591318910,18.963972,130.79,130.75,28.18183461]
[1744591319223,0.31432314,130.79,130.73,6.1193]
[1744591319519,0.03,130.79,130.76,28.18183461]
[1744591319720,18.64964886,130.78,130.77,28.18183461]
[1744591320023,18.64964886,130.78,130.76,28.18183461]
[1744591320223,26.03,130.79,130.77,28.18183461]
[1744591320423,0.03,130.79,130.78,28.18183461]
[1744591321114,0.03,130.79,130.78,56.36366922]
[1744591321419,0.03,130.79,130.78,28.18183461]
[1744591321622,0.03,130.79,130.78,34.29893461]
[1744591322027,0.0001,130.79,130.78,62.90725393]
[1744591322207,1.6462,130.9,130.79,0.28432314]
[1744591322408,6.4492,130.92,130.79,0.28432314]
[1744591322409,6.4492,130.92,130.87,28.18183461]
[1744591322739,6.4492,130.92,130.8,28.18183461]
[1744591322740,20.30167688,130.96,130.89,28.18183461]
[1744591322902,28.32399618,130.95,130.89,28.18183461]
[1744591323109,28.18183461,130.95,130.89,28.18183461]
[1744591323415,6.3305,130.97,130.93,28.18183461]
[1744591323820,26.0,130.94,130.93,28.18183461]
[1744591324133,18.64964886,130.96,130.92,28.18183461]
[1744591324328,18.64964886,130.96,130.91,28.18183461]
[1744591324538,18.64964886,130.96,130.89,6.1119]
[1744591324716,18.64964886,130.96,130.92,28.18183461]
[1744591325734,34.51233461,130.97,130.88,37.38183461]
[1744591325735,18.64964886,130.93,130.88,37.38183461]
[1744591326029,26.0,130.93,130.91,28.18183461]
[1744591326334,0.03,130.98,130.92,28.18183461]
[1744591326511,0.03,130.98,130.97,28.18183461]
[1744591327726,0.03,130.98,130.96,28.18183461]
[1744591327913,28.21183461,130.98,130.93,37.38183461]
[1744591328116,46.83148347,130.97,130.93,9.2]
[1744591328313,46.83148347,130.97,130.91,28.18183461]
[1744591328510,46.83148347,130.97,130.92,28.18183461]
[1744591328710,46.83148347,130.97,130.91,28.18183461]
[1744591329317,18.64964886,130.94,130.88,15.3121]
[1744591329518,18.64964886,130.94,130.91,28.18183461]
[1744591329712,18.64964886,130.92,130.88,28.18183461]
[1744591330009,18.64964886,130.92,130.87,6.1127]
[1744591330010,46.83148347,130.92,130.87,28.18183461]
[1744591330408,28.18183461,130.91,130.86,28.18183461]
[1744591330723,18.64964886,130.9,130.86,28.18183461]
[1744591331122,46.83148347,130.89,130.83,9.2]
[1744591331437,18.64964886,130.87,130.83,9.2]
[1744591331820,18.64964886,130.87,130.83,37.38183461]
[1744591332018,46.83148347,130.87,130.83,9.2]
[1744591332231,18.64964886,130.89,130.85,28.18183461]
[1744591332534,18.64964886,130.91,130.83,15.3147]
[1744591332731,18.64964886,130.91,130.88,28.18183461]
[1744591333516,18.64964886,130.89,130.84,28.18183461]
[1744591333818,18.64964886,130.89,130.85,28.18183461]
[1744591334317,18.64964886,130.91,130.87,28.18183461]
[1744591335029,18.64964886,130.91,130.83,15.3147]
[1744591335224,18.64964886,130.89,130.85,28.18183461]
[1744591335429,18.64964886,130.89,130.86,28.18183461]
[1744591335635,6.1111,130.91,130.86,28.18183461]
[1744591335837,18.64964886,130.92,130.88,28.18183461]
[1744591336009,18.64964886,130.92,130.89,28.18183461]
[1744591336216,18.64964886,130.94,130.9,28.18183461]
[1744591336448,46.83148347,130.94,130.89,28.18183461]
[1744591336635,46.83148347,130.94,130.84,0.28432314]
[1744591336636,18.64964886,130.93,130.88,28.18183461]
[1744591336828,18.64964886,130.93,130.9,28.18183461]
[1744591337330,18.64964886,130.95,130.91,28.18183461]
[1744591337634,18.64964886,130.95,130.92,28.18183461]
[1744591337838,24.75884886,130.95,130.91,28.18183461]
[1744591338014,24.75884886,130.95,130.86,0.14216157]
[1744591338015,18.64964886,130.93,130.86,6.1134]
[1744591338218,46.83148347,130.93,130.88,28.18183461]
[1744591338441,18.64964886,130.93,130.89,28.18183461]
[1744591339119,18.64964886,130.94,130.9,28.18183461]
[1744591339520,0.28432314,130.93,130.88,28.18183461]
[1744591339820,28.46615775,130.93,130.88,28.18183461]
[1744591340441,0.28432314,130.93,130.88,28.18183461]
[1744591340739,35.80013461,130.97,130.92,28.18183461]
[1744591340948,18.64964886,130.96,130.92,28.18183461]
[1744591341320,18.64964886,130.93,130.86,0.14216157]
[1744591341521,18.64964886,130.93,130.89,28.18183461]
[1744591341841,26.0,130.93,130.88,28.18183461]
[1744591342142,26.0,130.93,130.89,28.18183461]
[1744591342732,26.0,130.93,130.9,28.18183461]
[1744591343039,18.64964886,130.92,130.86,6.1129]
[1744591343220,26.0,130.93,130.9,28.18183461]
[1744591343423,24.75894886,130.95,130.9,28.18183461]
[1744591343633,6.1079,130.97,130.93,28.18183461]
[1744591343837,0.03,130.98,130.95,28.18183461]
[1744591344019,0.03,130.98,130.96,28.18183461]
[1744591344220,0.03,130.98,130.97,28.18183461]
[1744591344849,0.03,130.98,130.95,28.18183461]
[1744591345146,0.03,130.98,130.96,28.18183461]
[1744591345327,0.03,130.98,130.97,28.18183461]
[1744591345533,0.03,130.98,130.94,0.28432314]
[1744591345734,0.03,130.98,130.96,28.18183461]
[1744591345941,0.03,130.98,130.95,28.18183461]
[1744591346954,0.03,130.98,130.96,28.18183461]
[1744591348227,0.03,130.98,130.97,28.18183461]
[1744591349044,0.03,130.98,130.96,28.18183461]
[1744591349438,0.03,130.98,130.95,28.18183461]
[1744591350631,0.03,130.98,130.96,28.18183461]
[1744591351150,0.03,130.98,130.95,28.18183461]
[1744591351331,0.03,130.98,130.96,28.18183461]
[1744591353141,28.18183461,130.97,130.92,28.18183461]
[1744591353645,46.86148347,130.98,130.93,28.18183461]
[1744591353851,18.67964886,130.98,130.94,28.18183461]
[1744591354847,6.1082,130.97,130.9,15.43366157]
[1744591355053,6.1379,130.98,130.95,28.18183461]
[1744591355357,0.03,130.98,130.97,28.18183461]
[1744591355951,0.03,130.98,130.97,28.60831932]
[1744591356152,0.03,130.99,130.98,0.14216157]
[1744591356338,0.03,130.99,130.98,28.32399618]
[1744591357155,0.03,130.99,130.98,34.43179618]
[1744591358164,0.03,130.99,130.94,6.89062314]
[1744591358470,18.67964886,130.99,130.92,9.18]
[1744591358766,18.64964886,130.95,130.9,28.18183461]
[1744591358931,28.18183461,130.94,130.89,28.18183461]
[1744591359136,6.1101,130.93,130.9,28.18183461]
[1744591359355,34.29193461,130.93,130.88,28.18183461]
[1744591359558,18.64964886,130.92,130.87,37.36183461]
[1744591359866,28.18183461,130.92,130.87,9.18]
[1744591360046,18.64964886,130.91,130.87,9.18]
[1744591360248,6.1101,130.93,130.88,28.18183461]
[1744591360559,18.64964886,130.94,130.9,28.18183461]
[1744591360740,18.64964886,130.92,130.88,28.18183461]
[1744591360946,28.18183461,130.93,130.88,28.18183461]
[1744591361271,24.76044886,130.92,130.87,37.36183461]
[1744591361441,24.76044886,130.92,130.88,28.18183461]
[1744591362040,52.94228347,130.92,130.87,9.18]
[1744591362256,52.94228347,130.92,130.87,37.36183461]
[1744591362766,18.64964886,130.92,130.88,28.18183461]
[1744591362959,28.18183461,130.94,130.89,28.18183461]
[1744591363146,28.18183461,130.94,130.87,15.2928]
[1744591363147,24.75924886,130.94,130.9,28.18183461]
[1744591363751,24.75924886,130.94,130.89,28.18183461]
[1744591364056,28.18183461,130.93,130.88,28.18183461]
[1744591364254,24.75924886,130.94,130.9,28.18183461]
[1744591364461,6.1078,130.98,130.92,28.18183461]
[1744591364764,46.83148347,130.97,130.91,28.18183461]
[1744591364944,18.64964886,130.95,130.91,28.18183461]
[1744591365333,0.03,130.99,130.94,28.18183461]
[1744591365665,0.03,130.99,130.97,28.18183461]
[1744591366038,0.03,130.99,130.98,28.18183461]
[1744591366454,0.03,130.99,130.97,28.18183461]
[1744591366659,0.03,130.99,130.96,28.18183461]
[1744591366846,0.03,130.99,130.97,28.18183461]
[1744591367638,0.03,130.99,130.96,28.18183461]
[1744591367844,0.03,130.99,130.97,28.18183461]
[1744591368362,0.03,130.99,130.96,28.18183461]
[1744591368662,0.03,130.99,130.93,15.2899]
[1744591368846,0.03,130.99,130.96,28.18183461]
[1744591369552,6.1373,130.99,130.96,28.18183461]
[1744591369756,6.1373,130.99,130.95,28.18183461]
[1744591370061,6.1373,130.99,130.96,28.18183461]
[1744591370256,6.1373,130.99,130.93,15.2899]
[1744591370561,18.64964886,130.98,130.95,28.18183461]
[1744591370744,18.64964886,130.98,130.94,28.18183461]
[1744591371142,18.64964886,130.96,130.93,9.18]
[1744591371355,18.64964886,130.95,130.91,28.18183461]
[1744591371558,24.75924886,130.95,130.91,28.18183461]
[1744591371741,28.21183461,130.99,130.94,28.18183461]
[1744591371947,18.64964886,130.98,130.95,28.18183461]
[1744591372145,18.64964886,130.98,130.94,28.18183461]
[1744591373263,52.93928347,130.98,130.93,28.18183461]
[1744591373565,0.03,130.99,130.97,28.18183461]
[1744591373858,0.03,130.99,130.98,28.18183461]
[1744591374361,18.67964886,130.99,130.95,28.18183461]
[1744591374778,18.67964886,130.99,130.91,6.25316157]
[1744591374962,46.83148347,130.98,130.93,28.18183461]
[1744591375166,18.64964886,130.93,130.86,9.16]
[1744591375386,46.83148347,130.93,130.88,28.18183461]
[1744591375546,28.18183461,130.92,130.87,28.18183461]
[1744591375880,6.111,130.91,130.87,28.18183461]
[1744591376467,34.29163461,130.94,130.89,28.18183461]
[1744591376653,26.0,130.94,130.9,28.18183461]
[1744591378473,6.1101,130.93,130.89,28.18183461]
[1744591378676,52.94158347,130.93,130.88,28.18183461]
[1744591378848,28.18183461,130.92,130.88,28.18183461]
[1744591379045,6.1101,130.93,130.89,28.18183461]
[1744591379346,52.94158347,130.93,130.88,28.18183461]
[1744591379538,34.29193461,130.93,130.88,28.18183461]
[1744591380267,6.1101,130.93,130.89,28.18183461]
[1744591380445,34.29193461,130.93,130.88,28.18183461]
[1744591380958,46.83148347,130.92,130.87,28.18183461]
[1744591381160,46.83148347,130.92,130.86,9.16]
[1744591381355,27.963,130.93,130.88,28.18183461]
[1744591381356,40.86953461,130.93,130.88,28.18183461]
[1744591381564,1.6393,130.96,130.92,28.18183461]
[1744591381747,1.6393,130.96,130.93,28.18183461]
[1744591382073,7.7481,130.96,130.93,28.18183461]
[1744591382469,18.64964886,130.95,130.91,28.18183461]
[1744591383167,46.83148347,130.95,130.9,28.18183461]
[1744591383372,28.18183461,130.92,130.87,28.18183461]
[1744591384155,6.111,130.91,130.87,28.18183461]
[1744591384359,6.111,130.91,130.88,28.18183461]
[1744591386269,6.1106,130.92,130.88,28.18183461]
[1744591386470,46.83148347,130.91,130.86,37.34183461]
[1744591386660,1.6393,130.96,130.9,28.18183461]
[1744591386859,18.64964886,130.96,130.94,28.18183461]
[1744591387055,6.5776,130.97,130.95,28.18183461]
[1744591387262,0.03,130.99,130.96,28.18183461]
[1744591387454,28.21183461,130.99,130.92,9.18]
[1744591387663,46.83148347,130.98,130.92,37.36183461]
[1744591387968,46.83148347,130.97,130.88,28.32399618]
[1744591388169,46.83148347,130.94,130.89,28.18183461]
[1744591388371,24.75924886,130.94,130.91,28.18183461]
[1744591388556,24.75924886,130.94,130.9,28.18183461]
[1744591389382,6.1087,130.96,130.92,28.18183461]
[1744591389672,18.64964886,130.95,130.87,15.2927]
[1744591389871,46.83148347,130.95,130.9,28.18183461]
[1744591390280,6.1096,130.94,130.91,28.18183461]
[1744591390454,6.1089,130.96,130.92,28.18183461]
[1744591390655,28.21183461,130.99,130.94,28.18183461]
[1744591390968,46.86148347,130.99,130.94,28.18183461]
[1744591391672,18.67964886,130.99,130.95,28.18183461]
[1744591392184,0.03,130.99,130.96,28.18183461]
[1744591392363,0.03,130.99,130.97,28.18183461]
[1744591394062,0.03,130.99,130.96,28.18183461]
[1744591394458,46.86148347,130.99,130.94,28.18183461]
[1744591394686,28.18183461,130.97,130.92,28.18183461]
[1744591394877,46.83148347,130.98,130.93,28.18183461]
[1744591395076,28.18183461,130.97,130.92,28.18183461]
[1744591395381,18.64964886,130.96,130.92,28.18183461]
[1744591395577,18.64964886,130.96,130.9,6.1114]
[1744591395578,46.83148347,130.96,130.91,28.18183461]